bitfinex/quotes_SOLUSD_20240918
["timestamp","ask_amount","ask_price","bid_price","bid_amount"]
[1726673268482,1.55443922,127.46,127.41,7.8432]
[1726673268806,0.2494228,127.48,127.42,50.0]
[1726673269008,7.845,127.47,127.43,0.12549]
[1726673269384,7.845,127.47,127.43,7.97289]
[1726673270000,8.0938228,127.48,127.44,0.12549]
[1726673270290,8.0938228,127.48,127.44,7.97209]
[1726673270796,0.2494228,127.48,127.45,0.12549]
[1726673270989,0.2494228,127.48,127.45,7.97149]
[1726673271188,0.2494228,127.48,127.45,23.902374]
[1726673271617,0.2494228,127.48,127.45,0.12549]
[1726673271800,8.0937228,127.48,127.45,0.12549]
[1726673272022,8.0937228,127.48,127.44,50.12549]
[1726673273207,8.0937228,127.48,127.44,57.97209]
[1726673274419,8.0937228,127.48,127.45,0.12549]
[1726673274816,0.2494228,127.48,127.45,0.12549]
[1726673275132,8.0939228,127.48,127.44,50.12549]
[1726673275333,7.8449,127.47,127.44,0.12549]
[1726673275536,7.8449,127.47,127.44,24.027864]
[1726673276614,8.0939228,127.48,127.45,0.12549]
[1726673277233,8.0939228,127.48,127.44,81.874664]
[1726673278035,8.0939228,127.48,127.45,0.12549]
[1726673279335,0.2494228,127.48,127.46,0.12549]
[1726673279634,0.2494228,127.48,127.47,0.12549]
[1726673280542,0.2494228,127.48,127.46,69.73929]
[1726673280837,8.0938228,127.48,127.45,23.902374]
[1726673281340,0.2494228,127.48,127.43,19.6173]
[1726673281515,7.8456,127.46,127.42,57.8478]
[1726673282134,7.8456,127.46,127.42,77.4679]
[1726673282339,7.8455,127.47,127.43,7.8472]
[1726673282722,8.0939228,127.48,127.44,57.8467]
[1726673283022,0.2494228,127.48,127.44,50.0]
[1726673283229,0.2494228,127.48,127.46,57.8451]
[1726673283441,0.2494228,127.48,127.47,0.25098]
[1726673284926,0.2494228,127.48,127.47,31.998254]
[1726673285124,0.2494228,127.48,127.47,53.56651575]
[1726673285327,0.2494228,127.52,127.51,31.995854]
[1726673285825,0.2494228,127.52,127.51,51.995854]
[1726673287045,0.2494228,127.52,127.51,0.12549]
[1726673287352,0.2494228,127.52,127.49,27.4516]
[1726673287716,0.2494228,127.52,127.46,92.7066]
[1726673287912,0.2494228,127.52,127.46,84.8615]
[1726673288136,0.2494228,127.52,127.49,7.8432]
[1726673288931,0.2494228,127.52,127.48,69.86148]
[1726673289139,0.2494228,127.52,127.49,31.996954]
[1726673291442,8.0913228,127.52,127.49,24.153354]
[1726673291744,0.2494228,127.52,127.49,31.997054]
[1726673293539,0.2494228,127.52,127.5,19.6075]
[1726673293748,0.2494228,127.52,127.51,1.81909671]
[1726673293935,0.2494228,127.52,127.51,33.56397144]
[1726673294449,0.2494228,127.52,127.51,31.995854]
[1726673300140,0.2494228,127.52,127.51,48.468854]
[1726673301843,0.2494228,127.52,127.51,31.995854]
[1726673306458,0.2494228,127.52,127.51,24.153354]
[1726673307155,0.2494228,127.52,127.51,31.995854]
[1726673312738,0.2494228,127.52,127.51,33.56380303]
[1726673312939,0.2494228,127.52,127.51,31.995854]
[1726673315662,0.1240228,127.52,127.51,51.995854]
[1726673315874,0.2494228,127.56,127.55,121.467964]
[1726673316760,0.2494228,127.56,127.55,139.24749296]
[1726673316968,0.2494228,127.56,127.55,156.089331]
[1726673317477,0.2494228,127.56,127.55,160.58819296]
[1726673317880,0.2494228,127.56,127.55,160.71368296]
[1726673318043,0.2494228,127.56,127.55,142.934154]
[1726673319449,0.2494228,127.56,127.55,77.4401]
[1726673320074,0.2494228,127.56,127.55,97.4401]
[1726673320652,0.2494228,127.56,127.55,121.593454]
[1726673320955,0.2494228,127.56,127.55,79.25837683]
[1726673322077,0.2494228,127.56,127.55,101.593454]
[1726673323173,0.2494228,127.56,127.55,121.593454]
[1726673325568,0.2494228,127.56,127.55,129.429254]
[1726673328253,0.2494228,127.56,127.55,145.936554]
[1726673330053,0.2494228,127.56,127.55,153.792554]
[1726673330254,0.2494228,127.6,127.55,153.792554]
[1726673330255,0.2494228,127.6,127.59,77.55709]
[1726673330482,0.2494228,127.6,127.59,101.584954]
[1726673337180,0.2494228,127.6,127.59,121.584954]
[1726673337385,0.2494228,127.6,127.59,97.4316]
[1726673338683,0.2494228,127.6,127.59,121.584954]
[1726673339498,0.2494228,127.6,127.59,129.440954]
[1726673339695,0.2494228,127.6,127.59,121.584954]
[1726673344511,0.2494228,127.6,127.59,121.459464]
[1726673344895,0.2494228,127.6,127.59,97.4316]
[1726673346814,7.8376,127.59,127.55,50.0]
[1726673348132,7.8376,127.59,127.56,24.153354]
[1726673348421,8.0865228,127.6,127.56,24.153354]
[1726673349224,8.0865228,127.6,127.56,0.37647]
[1726673349639,8.0865228,127.6,127.56,24.153354]
[1726673349819,8.0865228,127.6,127.56,31.992654]
[1726673350528,0.2494228,127.6,127.56,31.992654]
[1726673350936,0.2494228,127.6,127.58,0.25098]
[1726673351426,0.2494228,127.6,127.58,0.12549]
[1726673351622,0.2494228,127.6,127.59,7.8376]
[1726673351935,0.2494228,127.6,127.59,31.990954]
[1726673352936,0.2494228,127.6,127.59,51.990954]
[1726673356019,0.2494228,127.6,127.59,27.8376]
[1726673356340,0.2494228,127.6,127.59,7.8376]
[1726673356626,0.2494228,127.6,127.58,50.0]
[1726673356828,8.0864228,127.6,127.57,19.5961]
[1726673357344,1.55443922,127.63,127.56,57.839]
[1726673357345,15.6336,127.62,127.56,57.839]
[1726673358410,1.55443922,127.61,127.56,57.839]
[1726673358818,1.55443922,127.61,127.57,24.153354]
[1726673359116,15.6336,127.62,127.57,24.153354]
[1726673359315,7.8373,127.6,127.57,24.153354]
[1726673360536,15.6336,127.62,127.59,0.37647]
[1726673360916,7.8364,127.61,127.59,0.37647]
[1726673361116,7.8364,127.61,127.58,0.25098]
[1726673361513,36.77743922,127.62,127.54,50.0]
[1726673361822,7.8379,127.59,127.57,0.12549]
[1726673362334,7.8379,127.59,127.56,0.12549]
[1726673362832,7.8401,127.55,127.52,50.0]
[1726673364019,7.8401,127.55,127.53,0.37647]
[1726673364419,7.8396,127.56,127.53,0.37647]
[1726673365445,7.84,127.55,127.53,0.37647]
[1726673365620,7.84,127.55,127.53,0.25098]
[1726673366726,29.2581969,127.58,127.5,0.2494228]
[1726673366727,39.5987,127.56,127.5,0.2494228]
[1726673366911,1.55443922,127.55,127.5,0.2494228]
[1726673367116,39.5987,127.56,127.5,0.2494228]
[1726673367117,1.55443922,127.54,127.5,0.2494228]
[1726673367416,7.8423,127.52,127.5,0.2494228]
[1726673368528,7.8415,127.53,127.5,0.2494228]
[1726673368928,7.8408,127.54,127.5,8.0923228]
[1726673369323,7.8408,127.54,127.51,0.37647]
[1726673370929,7.8413,127.53,127.51,0.37647]
[1726673371539,7.8408,127.54,127.51,0.37647]
[1726673372034,7.8408,127.54,127.51,8.21887]
[1726673372235,7.8408,127.54,127.51,0.37647]
[1726673372439,7.8398,127.56,127.52,9.41004338]
[1726673372644,7.8398,127.56,127.53,0.37647]
[1726673372853,7.839,127.57,127.53,9.78554294]
[1726673373223,7.8386,127.58,127.54,7.8402]
[1726673373444,7.8386,127.58,127.55,1.81875252]
[1726673373644,7.8386,127.58,127.55,0.25098]
[1726673374341,7.8386,127.58,127.55,8.09088]
[1726673375343,7.8386,127.58,127.55,0.25098]
[1726673375921,7.839,127.57,127.55,0.25098]
[1726673376126,7.8395,127.56,127.53,7.96649]
[1726673376342,7.8395,127.56,127.54,0.25098]
[1726673376747,7.839,127.57,127.54,0.25098]
[1726673378959,7.8384,127.58,127.55,0.12549]
[1726673390153,7.8384,127.58,127.55,7.96549]
[1726673390356,7.8384,127.58,127.56,0.25098]
[1726673392550,7.8378,127.59,127.56,0.25098]
[1726673393066,7.8378,127.59,127.56,1.81866403]
[1726673393573,15.94973727,127.6,127.56,9.6579205]
[1726673393868,16.7407228,127.64,127.58,0.25098]
[1726673394048,7.836,127.62,127.59,0.12549]
[1726673394246,8.11069384,127.63,127.6,7.96199]
[1726673394443,8.11069384,127.63,127.61,0.12549]
[1726673394444,7.8352,127.63,127.61,0.12549]
[1726673394679,0.2494228,127.64,127.59,0.12549]
[1726673394680,1.80386202,127.64,127.59,0.12549]
[1726673394847,7.8363,127.61,127.59,0.12549]
[1726673395366,1.55443922,127.63,127.58,0.25098]
[1726673395569,21.55443922,127.63,127.58,0.25098]
[1726673395952,7.8368,127.61,127.58,0.25098]
[1726673398873,7.8368,127.61,127.59,0.12549]
[1726673399069,7.8359,127.62,127.59,0.12549]
[1726673400372,7.8378,127.59,127.57,15.0323]
[1726673400575,7.837,127.6,127.57,15.0323]
[1726673401150,7.8365,127.61,127.57,22.871]
[1726673401962,7.837,127.6,127.58,0.25098]
[1726673402168,7.837,127.6,127.57,15.0323]
[1726673402366,7.8358,127.62,127.58,8.08868]
[1726673402572,7.8358,127.62,127.59,1.56731892]
[1726673402872,7.8361,127.62,127.58,0.37647]
[1726673403174,7.8361,127.62,127.57,84.629]
[1726673403175,20.0,127.63,127.57,15.0323]
[1726673403347,7.8374,127.6,127.57,15.0323]
[1726673403684,7.8365,127.61,127.58,0.12549]
[1726673404375,7.8365,127.61,127.58,0.25098]
[1726673404572,7.8359,127.62,127.58,8.08908]
[1726673404792,1.55443922,127.62,127.58,0.25098]
[1726673405479,20.0,127.63,127.56,19.5984]
[1726673406379,7.8376,127.59,127.56,19.5984]
[1726673407955,7.8383,127.58,127.56,0.25098]
[1726673408162,7.8378,127.59,127.56,0.25098]
[1726673410052,7.8386,127.58,127.54,23.50909]
[1726673410259,7.8386,127.58,127.55,0.12549]
[1726673411579,7.8377,127.59,127.55,31.867764]
[1726673411785,20.0,127.61,127.57,24.153354]
[1726673411786,7.8371,127.6,127.57,24.153354]
[1726673411954,24.52286334,127.62,127.58,7.838]
[1726673411955,16.03686334,127.62,127.58,7.838]
[1726673412153,16.03686334,127.62,127.57,51.588454]
[1726673412154,7.8364,127.61,127.57,51.588454]
[1726673412358,8.20066334,127.62,127.57,51.588454]
[1726673412359,7.8381,127.59,127.57,24.153354]
[1726673412579,8.20066334,127.62,127.57,0.37647]
[1726673412580,7.8371,127.6,127.57,0.37647]
[1726673412760,7.8376,127.59,127.57,0.25098]
[1726673412963,7.8376,127.59,127.55,57.8398]
[1726673413357,8.20066334,127.62,127.56,31.992554]
[1726673413358,7.8371,127.6,127.56,31.992554]
[1726673413889,7.8376,127.59,127.56,0.25098]
[1726673414071,7.8376,127.59,127.56,24.027864]
[1726673415005,7.8376,127.59,127.56,31.867264]
[1726673415992,7.8378,127.59,127.56,0.25098]
[1726673416409,8.19355524,127.62,127.57,0.12549]
[1726673416613,19.5886,127.63,127.58,0.25098]
[1726673416896,7.837,127.6,127.58,0.25098]
[1726673417606,27.7868348,127.63,127.55,50.0]
[1726673417607,20.0,127.62,127.55,57.8399]
[1726673417776,20.0,127.62,127.56,0.12549]
[1726673417777,7.8382,127.58,127.56,0.12549]
[1726673418177,7.8367,127.61,127.57,7.8388]
[1726673418381,7.8358,127.62,127.58,8.08878]
[1726673418681,7.8358,127.62,127.58,9.65614988]
[1726673418895,0.2494228,127.64,127.6,0.12549]
[1726673419074,7.8368,127.61,127.58,0.25098]
[1726673419591,19.8360228,127.64,127.57,0.25098]
[1726673420099,20.0,127.63,127.57,0.25098]
[1726673420907,7.8371,127.6,127.57,0.25098]
[1726673421904,7.8365,127.61,127.57,8.08978]
[1726673422800,7.837,127.6,127.57,8.08978]
[1726673423200,7.8366,127.61,127.57,8.08978]
[1726673423908,20.0,127.63,127.57,8.08978]
[1726673424283,7.8369,127.61,127.57,8.08978]
[1726673424719,9.39143922,127.6,127.57,0.25098]
[1726673425009,7.837,127.6,127.57,0.25098]
[1726673425696,7.8365,127.61,127.57,8.08968]
[1726673427098,7.837,127.6,127.57,8.08968]
[1726673427307,7.837,127.6,127.57,0.25098]
[1726673427511,7.8376,127.59,127.57,0.25098]
[1726673428191,7.8382,127.58,127.55,50.0]
[1726673428393,20.0,127.61,127.54,23.3837]
[1726673428705,1.55443922,127.6,127.54,23.3837]
[1726673428893,20.0,127.61,127.54,23.3837]
[1726673429283,7.8383,127.58,127.54,23.3837]
[1726673429890,7.8389,127.57,127.55,0.25098]
[1726673430093,7.8389,127.57,127.54,15.5432]
[1726673430599,7.8389,127.57,127.54,23.3837]
[1726673430793,7.8389,127.57,127.54,15.5432]
[1726673431382,7.84,127.55,127.54,15.5432]
[1726673431586,7.84,127.55,127.5,19.8557228]
[1726673431587,20.0,127.57,127.5,35.3561228]
[1726673431903,20.0,127.57,127.5,43.1991228]
[1726673431904,7.8413,127.53,127.5,43.1991228]
[1726673432095,7.8413,127.53,127.5,15.7498228]
[1726673433281,7.8408,127.54,127.5,23.5928228]
[1726673433789,20.0,127.57,127.5,15.7498228]
[1726673434007,7.8406,127.54,127.5,23.5925228]
[1726673434307,7.8401,127.55,127.51,8.21877]
[1726673435105,7.8396,127.56,127.52,7.8417]
[1726673435900,7.8396,127.56,127.53,0.12549]
[1726673436302,7.8402,127.55,127.53,0.12549]
[1726673436600,7.8408,127.54,127.51,19.85668]
[1726673436908,7.8408,127.54,127.52,0.12549]
[1726673437117,7.8402,127.55,127.52,0.12549]
[1726673438006,7.8407,127.54,127.52,0.12549]
[1726673438218,7.8401,127.55,127.52,0.12549]
[1726673438904,7.8396,127.56,127.53,0.12549]
[1726673439085,9.39403922,127.56,127.53,0.12549]
[1726673439813,7.8396,127.56,127.53,0.12549]
[1726673440511,9.39403922,127.56,127.53,0.12549]
[1726673440831,7.8401,127.55,127.52,0.12549]
[1726673441214,9.39543922,127.54,127.5,23.5927228]
[1726673441509,7.841,127.54,127.51,7.8425]
[1726673441720,7.8401,127.55,127.51,7.8425]
[1726673442418,7.8401,127.55,127.52,0.37647]
[1726673443498,7.8401,127.55,127.52,0.25098]
[1726673443700,7.8408,127.54,127.52,0.25098]
[1726673444021,7.842,127.52,127.5,15.7498228]
[1726673444315,7.8415,127.53,127.5,15.7498228]
[1726673444715,7.8425,127.51,127.5,0.2494228]
[1726673445098,7.842,127.52,127.5,0.2494228]
[1726673448296,7.8425,127.51,127.5,0.2494228]
[1726673449712,7.8421,127.52,127.5,0.2494228]
[1726673450720,7.8415,127.53,127.5,0.2494228]
[1726673451420,7.8419,127.52,127.5,0.2494228]
[1726673451721,7.8415,127.53,127.5,0.2494228]
[1726673452841,27.79125228,127.55,127.5,0.2494228]
[1726673452842,7.8419,127.52,127.5,0.2494228]
[1726673453442,7.8425,127.51,127.5,0.2494228]
[1726673455037,27.8425,127.51,127.5,0.2494228]
[1726673455242,47.4488,127.51,127.5,0.2494228]
[1726673459729,51.621784,127.47,127.46,0.2494228]
[1726673459934,51.621784,127.47,127.43,0.2494228]
[1726673459936,27.8468,127.44,127.43,0.2494228]
[1726673460123,20.0,127.44,127.39,0.2494228]
[1726673460322,7.849,127.41,127.39,0.2494228]
[1726673460620,1.55443922,127.43,127.39,8.0992228]
[1726673460621,27.8478,127.43,127.39,8.0992228]
[1726673460819,7.8478,127.43,127.39,8.0992228]
[1726673461038,7.8469,127.44,127.39,0.2494228]
[1726673461245,7.8469,127.44,127.4,7.3492]
[1726673461657,7.8463,127.45,127.41,7.8484]
[1726673461840,16.03650984,127.46,127.42,24.0647]
[1726673462042,19.6074,127.51,127.43,1.56920734]
[1726673462222,21.16183922,127.51,127.43,0.25098]
[1726673462423,8.18749589,127.5,127.43,0.25098]
[1726673462643,1.55443922,127.49,127.43,0.25098]
[1726673462944,8.18749589,127.5,127.44,0.12549]
[1726673463146,8.18749589,127.5,127.45,0.12549]
[1726673463331,7.8439,127.49,127.46,0.12549]
[1726673463541,7.8432,127.5,127.46,7.97099]
[1726673464552,7.8432,127.5,127.47,1.8198312]
[1726673464750,8.43733634,127.52,127.47,0.12549]
[1726673464751,7.8438,127.49,127.47,0.12549]
[1726673464918,7.8438,127.49,127.46,0.12549]
[1726673465122,8.43733634,127.52,127.47,0.12549]
[1726673465123,7.8433,127.5,127.47,0.12549]
[1726673466439,7.8433,127.5,127.47,0.25098]
[1726673466918,8.43733634,127.52,127.5,0.12549]
[1726673467126,0.2494228,127.52,127.51,8.21897]
[1726673467456,0.2494228,127.52,127.51,50.37647]
[1726673467629,0.2494228,127.52,127.51,0.25098]
[1726673468960,0.2494228,127.52,127.49,50.0]
[1726673469454,8.0915228,127.52,127.5,0.25098]
[1726673469652,8.0915228,127.52,127.49,0.25098]
[1726673470751,0.2494228,127.52,127.49,8.09458]
[1726673471053,0.2494228,127.52,127.49,0.25098]
[1726673471733,7.8427,127.51,127.49,0.25098]
[1726673471934,0.2494228,127.52,127.49,0.25098]
[1726673472150,8.0914228,127.52,127.49,0.25098]
[1726673472850,7.8426,127.51,127.49,0.25098]
[1726673473339,7.8426,127.51,127.49,0.12549]
[1726673473537,7.8426,127.51,127.48,16.13139]
[1726673474043,7.8431,127.5,127.48,16.0059]
[1726673474359,20.2494228,127.52,127.45,73.7591]
[1726673474555,7.8433,127.5,127.46,7.8453]
[1726673475233,20.2494228,127.52,127.47,51.56868318]
[1726673475234,0.2494228,127.52,127.47,51.56868318]
[1726673475458,8.0914228,127.52,127.48,31.997254]
[1726673475656,8.0914228,127.52,127.49,1.56850998]
[1726673475956,0.2494228,127.52,127.51,58.21897]
[1726673476133,0.2494228,127.52,127.51,74.153354]
[1726673476327,0.2494228,127.52,127.51,81.995854]
[1726673476556,0.2494228,127.52,127.51,74.153354]
[1726673476757,0.2494228,127.52,127.51,0.37647]
[1726673478059,0.2494228,127.52,127.51,0.25098]
[1726673478231,0.2494228,127.52,127.51,1.94474589]
[1726673480044,0.2494228,127.52,127.51,0.37647]
[1726673480545,0.2494228,127.52,127.5,15.2786]
[1726673480948,0.2494228,127.52,127.51,0.25098]
[1726673482365,0.2494228,127.52,127.51,1.94476565]
[1726673482668,0.2494228,127.52,127.51,33.56414965]
[1726673483165,0.2494228,127.52,127.51,83.56414965]
[1726673483560,0.2494228,127.52,127.51,103.56414965]
[1726673483775,0.2494228,127.56,127.55,81.993354]
[1726673484074,0.2494228,127.56,127.55,83.5608855]
[1726673485555,0.2494228,127.56,127.55,81.993354]
[1726673485881,7.8376,127.59,127.55,81.993354]
[1726673485882,0.1912568,127.57,127.56,24.153354]
[1726673489547,0.1912568,127.57,127.56,0.25098]
[1726673491574,0.1912568,127.57,127.56,1.94406863]
[1726673491868,0.1912568,127.57,127.56,33.56035263]
[1726673492671,0.1912568,127.57,127.56,31.992754]
[1726673504256,0.1912568,127.57,127.56,51.591354]
[1726673504471,0.1912568,127.57,127.56,70.91740004]
[1726673504786,0.1912568,127.57,127.56,71.591354]
[1726673506087,0.1912568,127.57,127.56,73.15849844]
[1726673506288,0.1912568,127.57,127.56,71.591354]
[1726673508268,0.1912568,127.57,127.56,27.56349]
[1726673509292,0.1912568,127.57,127.56,19.5986]
[1726673509491,0.1912568,127.57,127.55,73.1626]
[1726673509492,0.1912568,127.57,127.55,65.3228]
[1726673510491,0.1912568,127.57,127.55,73.1627]
[1726673510790,0.1912568,127.57,127.56,7.8394]
[1726673510989,0.1912568,127.57,127.56,9.40692163]
[1726673511571,0.1912568,127.57,127.56,9.78339163]
[1726673512794,0.1912568,127.57,127.56,47.54205492]
[1726673514885,0.1912568,127.57,127.56,45.97453329]
[1726673522385,0.1912568,127.57,127.56,28.21587]
[1726673523899,0.1912568,127.57,127.56,41.12137247]
[1726673524101,0.1912568,127.57,127.56,39.55432833]
[1726673524489,0.1912568,127.57,127.56,7.8394]
[1726673524795,0.1912568,127.57,127.55,19.5998]
[1726673524997,7.8396,127.56,127.54,7.8376]
[1726673525199,0.1912568,127.57,127.54,7.8376]
[1726673525384,0.1912568,127.57,127.53,50.0]
[1726673525586,0.1912568,127.57,127.54,7.8404]
[1726673526301,0.1912568,127.57,127.55,0.37647]
[1726673527217,0.1912568,127.57,127.55,24.027864]
[1726673528015,0.1912568,127.57,127.56,25.34455433]
[1726673528195,0.1912568,127.57,127.56,25.59553433]
[1726673528392,0.1912568,127.57,127.56,25.72102433]
[1726673529214,0.1912568,127.57,127.56,24.153354]
[1726673535398,7.8401,127.55,127.53,50.0]
[1726673535621,0.1912568,127.57,127.52,50.0]
[1726673535821,7.8407,127.54,127.52,50.0]
[1726673536209,7.8413,127.53,127.5,50.0]
[1726673536408,0.1912568,127.57,127.5,50.0]
[1726673536409,7.8419,127.52,127.5,50.0]
[1726673537014,7.8415,127.53,127.5,50.0]
[1726673537825,7.8415,127.53,127.51,0.37647]
[1726673540508,7.8407,127.54,127.51,1.94467954]
[1726673541522,7.8407,127.54,127.53,0.37647]
[1726673543428,7.8407,127.54,127.53,0.25098]
[1726673546418,7.9503092,127.54,127.53,0.25098]
[1726673547031,0.1096092,127.54,127.53,0.37647]
[1726673547206,0.1096092,127.54,127.53,25.72120919]
[1726673548935,0.1096092,127.54,127.53,24.153354]
[1726673551136,0.1096092,127.54,127.53,0.37647]
[1726673552133,0.1096092,127.54,127.49,16.62]
[1726673552335,7.8429,127.51,127.48,50.0]
[1726673552542,7.8432,127.5,127.48,50.0]
[1726673552845,7.8427,127.51,127.48,50.0]
[1726673553631,19.7119092,127.54,127.46,65.4009]
[1726673553817,7.8442,127.49,127.46,50.0]
[1726673554128,7.8445,127.48,127.44,57.9853022]
[1726673554711,7.8439,127.49,127.44,57.9853022]
[1726673555315,7.8439,127.49,127.45,24.153354]
[1726673555708,19.6053,127.52,127.45,24.153354]
[1726673555709,7.8445,127.48,127.45,0.25098]
[1726673556914,7.8445,127.48,127.46,0.25098]
[1726673557111,7.8432,127.5,127.47,0.12549]
[1726673557316,7.8432,127.5,127.47,0.25098]
[1726673557841,7.844,127.49,127.47,0.25098]
[1726673558319,8.18536768,127.51,127.47,0.25098]
[1726673558320,7.8432,127.5,127.47,0.25098]
[1726673558520,16.02806768,127.51,127.47,0.25098]
[1726673559024,7.8433,127.5,127.47,0.25098]
[1726673559524,7.8448,127.48,127.45,0.12549]
[1726673559927,14.21326768,127.51,127.44,69.7552022]
[1726673560129,7.8445,127.48,127.44,69.7552022]
[1726673560338,7.8451,127.47,127.44,69.7552022]
[1726673560934,7.8451,127.47,127.45,1.56901225]
[1726673561651,7.8443,127.49,127.46,0.25098]
[1726673561820,7.8443,127.49,127.46,1.8199915]
[1726673564551,8.18536768,127.51,127.48,0.25098]
[1726673564552,16.02806768,127.51,127.48,0.25098]
[1726673565142,7.8427,127.51,127.48,0.25098]
[1726673565348,0.1096092,127.54,127.5,0.25098]
[1726673565524,7.8415,127.53,127.5,50.12549]
[1726673565843,7.8415,127.53,127.51,0.12549]
[1726673566037,7.8419,127.52,127.5,0.12549]
[1726673566431,7.8419,127.52,127.5,0.25098]
[1726673566727,7.8413,127.53,127.5,0.25098]
[1726673567648,0.1096092,127.54,127.5,0.12549]
[1726673567649,7.8422,127.52,127.5,0.12549]
[1726673567857,7.8422,127.52,127.5,0.25098]
[1726673568753,0.1096092,127.54,127.5,0.25098]
[1726673568944,20.1096092,127.54,127.46,50.0]
[1726673569246,7.8429,127.51,127.47,7.8449]
[1726673569452,7.8429,127.51,127.46,69.6137]
[1726673569453,7.8429,127.51,127.46,77.459]
[1726673570152,7.8429,127.51,127.48,0.25098]
[1726673570326,7.8429,127.51,127.47,0.25098]
[1726673570855,7.8429,127.51,127.47,24.027864]
[1726673571041,7.8438,127.49,127.46,19.6137]
[1726673571953,7.8438,127.49,127.45,23.557]
[1726673572840,7.8438,127.49,127.46,1.5688661]
[1726673573039,7.8438,127.49,127.45,23.557]
[1726673573339,7.8438,127.49,127.46,0.25098]
[1726673573554,7.8438,127.49,127.46,1.81984272]
[1726673574354,7.8438,127.49,127.46,0.25098]
[1726673574927,7.8438,127.49,127.46,1.81984271]
[1726673575461,7.8438,127.49,127.46,0.25098]
[1726673577755,7.8433,127.5,127.46,9.6652449]
[1726673577959,7.8433,127.5,127.47,0.12549]
[1726673580332,7.8439,127.49,127.46,0.25098]
[1726673580527,8.1854182,127.51,127.45,19.6153]
[1726673580528,7.8444,127.48,127.45,19.6153]
[1726673581153,7.845,127.47,127.44,50.1387022]
[1726673581754,7.8459,127.46,127.44,0.1387022]
[1726673582055,7.8452,127.47,127.44,0.1387022]
[1726673582435,7.8452,127.47,127.44,1.70785109]
[1726673582637,7.8446,127.48,127.44,9.55455109]
[1726673582847,7.8446,127.48,127.45,8.09708]
[1726673583655,19.6047,127.52,127.46,29.1535766]
[1726673583835,7.8433,127.5,127.47,0.25098]
[1726673584031,7.8427,127.51,127.47,9.66449239]
[1726673584265,7.8427,127.51,127.47,9.66439239]
[1726673584427,7.8427,127.51,127.48,7.8443]
[1726673584630,7.8421,127.52,127.49,1.81960037]
[1726673584829,6.3877092,127.54,127.5,0.12549]
[1726673584830,7.8415,127.53,127.5,0.12549]
[1726673586061,0.1096092,127.54,127.5,25.47073478]
[1726673586249,0.1096092,127.54,127.51,8.09338]
[1726673587457,7.9504092,127.54,127.51,0.25098]
[1726673588434,7.9504092,127.54,127.52,0.12549]
[1726673588435,0.1096092,127.54,127.52,0.12549]
[1726673588639,0.1096092,127.54,127.53,0.25098]
[1726673589658,0.1096092,127.54,127.53,31.994554]
[1726673589955,0.1096092,127.54,127.53,8.21767]
[1726673590159,0.1096092,127.54,127.53,0.37647]
[1726673590452,7.8416,127.53,127.49,57.8433]
[1726673591242,7.8416,127.53,127.49,7.8433]
[1726673591845,7.8416,127.53,127.5,0.37647]
[1726673593356,7.8425,127.51,127.48,19.6095]
[1726673593658,7.8431,127.5,127.45,85.4732]
[1726673595336,7.8431,127.5,127.46,7.8453]
[1726673595537,21.15763922,127.53,127.45,85.4732]
[1726673595767,7.8444,127.48,127.45,35.4732]
[1726673595942,7.8444,127.48,127.45,19.6143]
[1726673596345,7.8444,127.48,127.45,27.4605]
[1726673596557,7.8439,127.49,127.45,27.4605]
[1726673596956,7.8439,127.49,127.46,0.12549]
[1726673597258,7.8444,127.48,127.44,7.9853022]
[1726673597636,7.8451,127.47,127.44,0.1387022]
[1726673600567,7.8445,127.48,127.44,7.9854022]
[1726673601064,7.845,127.47,127.44,0.1387022]
[1726673602039,7.8445,127.48,127.44,9.55465266]
[1726673602276,7.8445,127.48,127.45,1.82008913]
[1726673602788,7.8432,127.5,127.46,7.8454]
[1726673603083,7.8426,127.51,127.47,8.09578]
[1726673603284,7.8431,127.5,127.47,7.8448]
[1726673603583,7.8427,127.51,127.47,8.09588]